Cogmind - Beta 10.2 @@@ ROGUE MODE // 2021.07.13 @ 15:48:20 Player: T-900 Result: Self-destructed Performance ------------- Evolutions (1) 500 Regions Visited (3) 600 Robots Destroyed (3) 15 Value Destroyed (91) 91 Prototype IDs (0) 0 Alien Tech Used (0) 0 Bonus (0) 0 TOTAL SCORE: 1206 Bonus ------- None Cogmind --------- Core Integrity 375/400 Matter 210/300 Energy 250/250 System Corruption 0% Temperature Cool (0) Movement Walking (120) Location -9/Materials Parts ------- > --- POWER (1) -------- Ion Engine > --- PROPULSION (4) --- Aluminum Leg Aluminum Leg Aluminum Leg > --- UTILITY (2) ------ Small Storage Unit Small Storage Unit > --- WEAPON (2) ------- Light Assault Rifle > --- INVENTORY (8) ---- Ion Engine Shield Generator Peak State ------------ > --- POWER ------------ Ion Engine > --- PROPULSION ------- Light Treads Light Treads > --- UTILITY ---------- Small Storage Unit Small Storage Unit > --- WEAPON ----------- Small Laser Small Laser > --- INVENTORY -------- Ion Engine Aluminum Leg Aluminum Leg Assault Rifle [Rating: 7] Favorites ----------- Power Ion Engine Engine Ion Engine Propulsion Light Treads Treads Light Treads Leg Aluminum Leg Utility Small Storage Unit Storage Small Storage Unit Weapon Small Laser Energy Gun Small Laser Ballistic Gun Light Assault Rifle Ballistic Cannon Light Cannon Build | -11 -10 -10 -9 ------- Run | Scr Mat Min Mat Slots Evolved 2 | . . . 2 Power . | . . . . Propulsion 2 | . . . 2 Utility . | . . . . Weapon . | . . . . Parts Attached 14 | 4 6 3 1 Power 2 | 1 . 1 . Engine 2 | 1 . 1 . Core . | . . . . Reactor . | . . . . Propulsion 5 | 2 . 2 1 Treads 2 | 2 . . . Leg 3 | . . 2 1 Wheel . | . . . . Hover . | . . . . Flight . | . . . . Utility 2 | 1 1 . . Device . | . . . . Storage 2 | 1 1 . . Processor . | . . . . Hackware . | . . . . Protection . | . . . . Artifact . | . . . . Weapon 5 | . 5 . . Energy Gun 2 | . 2 . . Energy Cannon . | . . . . Ballistic Gun 2 | . 2 . . Ballistic Cannon 1 | . 1 . . Launcher . | . . . . Special Weapon . | . . . . Impact Weapon . | . . . . Slashing Weapon . | . . . . Piercing Weapon . | . . . . Special Melee Weapon . | . . . . Unidentified Prototypes . | . . . . Parts Lost 6 | . 6 . . Power . | . . . . Propulsion 2 | . 2 . . Utility . | . . . . Weapon 4 | . 4 . . Highest Loss Streak 6 | . 6 . . Average Slot Usage (%) 89 | . 92 83 77 Engine 13 | . 14 14 11 Treads 20 | . 27 . . Leg 6 | . . 26 33 Storage 26 | . 27 28 22 Energy Gun 15 | . 20 . . Ballistic Gun 3 | . 1 14 11 Ballistic Cannon 1 | . 1 . . Naked Turns . | . . . . Heaviest Build 17 | 9 17 14 14 Greatest Support 40 | 3 40 20 20 Greatest Overweight (x) 5 | 2 5 . . Average Overweight (x) 2 | 1 3 . . Largest Inventory Capacity 8 | 6 8 8 8 Average Capacity 7 | 5 7 8 8 Most Carried 7 | 6 7 5 2 Average Carried 4 | 5 5 2 1 Final Capacity 8 | 6 8 8 8 Final Carried 6 | 6 5 2 2 Class Distribution -------------------- 100% | Mutant Dominant Class ---------------- Mutant | -10/Materials Mutant | -10/Mines Mutant | -9/Materials Resources | -11 -10 -10 -9 ----------- Run | Scr Mat Min Mat Matter Collected 270 | 212 58 . . Remotely . | . . . . Salvage Created 113 | . 113 . . Parts 7 | . 7 . . Haulers Intercepted . | . . . . Recyclers Shooed . | . . . . Parts Field Recycled . | . . . . Retrieved Matter . | . . . . Parts Self-Destructed . | . . . . Prevented . | . . . . Kills | -11 -10 -10 -9 ------- Run | Scr Mat Min Mat Combat Hostiles Destroyed 3 | . 3 . . Guns 2 | . 2 . . Cannons 1 | . 1 . . Classes Destroyed 2 | . 2 . . Swarmer 1 | . 1 . . Grunt 2 | . 2 . . Best Kill Streak 2 | . 2 . . Combat Bots Only 2 | . 2 . . Max Kills in Single Turn 1 | . 1 . . Gunslinging . | . . . . Exploded . | . . . . Melee . | . . . . Uniques/NPCs Destroyed . | . . . . Combat | -11 -10 -10 -9 -------- Run | Scr Mat Min Mat Damage Taken 1027 | . 933 . 94 Core 195 | . 170 . 25 Absorbed by Shields . | . . . . Core Remaining (%) 66 | 100 . 32 . Volleys Fired 12 | . 12 . . Largest 2 | . 2 . . Hottest 80 | . 80 . . Shots Fired 24 | . 24 . . Gun 18 | . 18 . . Cannon 6 | . 6 . . Launcher . | . . . . Special . | . . . . Kinetic 12 | . 12 . . Thermal 12 | . 12 . . Explosive . | . . . . Electromagnetic . | . . . . Robot Hit Streak 9 | . 9 . . Robot Miss Streak 1 | . 1 . . Penetration Max . | . . . . Secondary Targets . | . . . . Shots Hit Robots 19 | . 19 . . Core Hits 7 | . 7 . . Critical Hits . | . . . . Critical Kills . | . . . . Critical Parts Destroyed . | . . . . Melee Attacks . | . . . . Impact . | . . . . Slashing . | . . . . Piercing . | . . . . Sneak Attacks . | . . . . Combat Hostiles . | . . . . Follow-up Attacks . | . . . . Damage Inflicted 247 | . 247 . . Guns 177 | . 177 . . Cannons 70 | . 70 . . Explosions . | . . . . Melee . | . . . . Ramming . | . . . . Kinetic 136 | . 136 . . Thermal 111 | . 111 . . Explosive . | . . . . Electromagnetic . | . . . . Impact . | . . . . Slashing . | . . . . Piercing . | . . . . Highest Corruption . | . . . . Average Corruption . | . . . . Corruption Purged . | . . . . Overload Shots . | . . . . Overflow Damage . | . . . . Projectiles . | . . . . Explosions . | . . . . Melee . | . . . . Knockbacks . | . . . . Impact . | . . . . Kinetic . | . . . . Secondary . | . . . . Self-Inflicted Damage . | . . . . Shots . | . . . . Rammed . | . . . . Targets Rammed . | . . . . Kicked . | . . . . Crushed . | . . . . Highest Temperature 117 | . 117 . . Average Temperature 37 | . 37 . . Received Heat Transfer 366 | . 357 . 9 Siege Activations . | . . . . Robots Corrupted . | . . . . Combat Hostiles . | . . . . Parts Fried . | . . . . Impact Corruptions . | . . . . Robots Melted . | . . . . Combat Hostiles . | . . . . Parts Melted 1 | . 1 . . Heat Transferred 250 | . 250 . . Parts Sabotaged . | . . . . Parts Stolen . | . . . . Parts Stripped . | . . . . Power Chain Reactions . | . . . . Missiles Intercepted . | . . . . Alert | -11 -10 -10 -9 ------- Run | Scr Mat Min Mat Peak Influence 90 | . 90 . . Initial . | . . . . Average 13 | . 21 . . Maximum Alert Level . | . . . . Low Security (%) 100 | 100 100 100 100 Level 1 . | . . . . Level 2 . | . . . . Level 3 . | . . . . Level 4 . | . . . . Level 5 . | . . . . High Security . | . . . . Max Security . | . . . . Squads Dispatched . | . . . . Investigation . | . . . . Extermination . | . . . . Reinforcement . | . . . . Assault . | . . . . Garrison . | . . . . Intercept . | . . . . Construction Impeded . | . . . . Haulers Reinforced . | . . . . Stealth | -11 -10 -10 -9 --------- Run | Scr Mat Min Mat Distress Signals 1 | . 1 . . Communications Jammed . | . . . . Distress Signals . | . . . . Times Spotted 16 | . 11 . 5 Peak Tracking Total 6 | . 6 . 5 Tactical Retreats . | . . . . Traps | -11 -10 -10 -9 ------- Run | Scr Mat Min Mat Traps Triggered . | . . . . Indirectly . | . . . . Trap Hack Attempts . | . . . . Triggered . | . . . . Disarmed . | . . . . Reprogrammed . | . . . . Reused . | . . . . Traps Extracted . | . . . . Installed . | . . . . Triggered . | . . . . Machines | -11 -10 -10 -9 ---------- Run | Scr Mat Min Mat Machines Disabled . | . . . . Max in Single Turn . | . . . . Machines Sabotaged . | . . . . Garrisons Compromised . | . . . . Overloaded Fab Kills . | . . . . Fab Network Shutdowns . | . . . . Hacking | -11 -10 -10 -9 --------- Run | Scr Mat Min Mat Machines Accessed . | . . . . Terminals . | . . . . Fabricators . | . . . . Repair Stations . | . . . . Recycling Units . | . . . . Scanalyzers . | . . . . Garrison Access . | . . . . Total Hacks . | . . . . Successful . | . . . . Failed . | . . . . Catastrophic . | . . . . Database Lockouts . | . . . . Manual . | . . . . Terminals . | . . . . Fabricators . | . . . . Repair Stations . | . . . . Recycling Units . | . . . . Scanalyzers . | . . . . Garrison Access . | . . . . Terminal Hacks . | . . . . Fabricator Hacks . | . . . . Repair Station Hacks . | . . . . Recycling Unit Hacks . | . . . . Scanalyzer . | . . . . Garrison Access Hacks . | . . . . Unauthorized Hacks . | . . . . Terminals . | . . . . Fabricators . | . . . . Repair Stations . | . . . . Recycling Units . | . . . . Scanalyzers . | . . . . Garrison Access . | . . . . Data Cores Recovered . | . . . . Used . | . . . . Hacking Detections . | . . . . Full Trace Events . | . . . . Feedback Events . | . . . . Feedback Blocked . | . . . . Robot Schematics Acquired . | . . . . Robots Built . | . . . . Matter . | . . . . Time . | . . . . Total Robot Build Rating . | . . . . Part Schematics Acquired . | . . . . Parts Built . | . . . . Matter . | . . . . Time . | . . . . Total Part Build Rating . | . . . . Parts Repaired . | . . . . Time . | . . . . Parts Recycled . | . . . . Recycled Matter . | . . . . Retrieved Matter . | . . . . Retrieved Components . | . . . . Parts Scanalyzed . | . . . . Part Schematics Acquired . | . . . . Parts Damaged . | . . . . Bothacking | -11 -10 -10 -9 ------------ Run | Scr Mat Min Mat Used RIF Installer . | . . . . Robots Hacked . | . . . . Non-combat . | . . . . Combat . | . . . . Robot Hacks Applied . | . . . . Relay Couplers Released . | . . . . Robots Rewired . | . . . . Allies Hacked . | . . . . Hacks Repelled . | . . . . Allies | -11 -10 -10 -9 -------- Run | Scr Mat Min Mat Total Allies . | . . . . Largest Group . | . . . . Highest-Rated Group . | . . . . Highest-Rated Ally . | . . . . Total Orders . | . . . . Ally Attacks . | . . . . Total Damage . | . . . . Kills . | . . . . Allies Corrupted . | . . . . Allies Melted . | . . . . Intel | -11 -10 -10 -9 ------- Run | Scr Mat Min Mat Robot Analysis Total . | . . . . Derelict Logs Recovered 2 | . . 2 . Drone Launches . | . . . . Drone Recoveries . | . . . . Exploration | -11 -10 -10 -9 ------------- Run | Scr Mat Min Mat Turns Passed 664 | 115 421 96 32 Spaces Moved 325 | 75 147 78 25 Core 218 | 75 143 . . Treads 4 | . 4 . . Legs 103 | . . 78 25 Wheels . | . . . . Hover . | . . . . Flight . | . . . . Fastest Speed 50 | 50 150 120 120 Average Speed 176 | 136 236 120 120 Slowest Speed 300 | 150 300 120 120 Overloaded Moves . | . . . . Propulsion Burnouts . | . . . . Robots Hopped . | . . . . Cave-ins Triggered . | . . . . Exploration Rate (%) 18 | 5 37 30 3 Regions Visited 3 Branch Regions 1 Pre-discovered Areas . | . . . . Known Exits Taken . | . . . . Unknown Exits Taken 3 | 1 1 1 . Scrap Searched . | . . . . Spaces Dug . | . . . . Terrain Destroyed . | . . . . Melee . | . . . . Projectile . | . . . . AOE . | . . . . Terrain Rammed . | . . . . Walls Destroyed . | . . . . Machines Disabled . | . . . . Actions | -11 -10 -10 -9 --------- Run | Scr Mat Min Mat Total 393 | 88 197 81 27 Wait 29 | . 29 . . Move 322 | 74 146 77 25 Hop . | . . . . Pick Up 15 | 10 4 . 1 Fast Attach 1 | . 1 . . Attach 13 | 4 5 3 1 Detach . | . . . . Swap . | . . . . Drop 1 | . . 1 . Fire 12 | . 12 . . Melee . | . . . . Ram . | . . . . Kick . | . . . . Crush . | . . . . Escape Stasis . | . . . . Rewire . | . . . . Trap . | . . . . Miscellaneous . | . . . . Route ------- -11/Scrapyard -10/Materials -10/Mines -9/Materials History --------- Turn | Location | Event 15 | -11/Scrapyard | Discovered new exit (range 16) 116 | -11/Scrapyard | Entered Materials 318 | -10/Materials | Build established: Mutant 519 | -10/Materials | Core integrity fell below 50% 519 | -10/Materials | Discovered new exit (range 8) 537 | -10/Materials | Entered Mines 563 | -10/Mines | Lost 6 parts (2n4w) 585 | -10/Mines | Learned Materials terminal intel 608 | -10/Mines | Learned Materials interactive machine intel 624 | -10/Mines | Discovered new exit (range 10) 633 | -10/Mines | Entered Materials 633 | -9/Materials | Evolved 2 slots: Propulsion x2 634 | -9/Materials | Loaded intel: 17 interactive machine locations 635 | -9/Materials | Loaded intel: 11 terminal locations 665 | -9/Materials | Self-destructed Last Messages --------------- LOCATION=UNKNOWN GOAL=ESCAPE 00537_ Dropped Ion Engine. 00538_ K-01 Serf collects debris. 00544_ K-01 Serf cleans the Core Extractor. 00545_ K-01 Serf collects debris. 00585_ Acquired derelict log, extracted data. Data stored: Materials terminal intel. 00596_ K-01 Serf collects debris. 00608_ Acquired derelict log, extracted data. Data stored: Materials interactive machine intel. 00611_ K-01 Serf collects debris. 00616_ T-07 Excavator is excavating. 00624_ EXIT=FOUND PARAMETERS=PROPULSION_2 LOCATION=UNKNOWN GOAL=ESCAPE Loading Materials interactive machine intel (x17)... Loading Materials terminal intel (x11)... 00643_ Acquired Shield Generator. Map ----- +----------------------------------------------------+ | ?????????????????????????????????????????????????? | | ?????????????????????????????????????????????????? | | ?????????????????????????????????????????????????? | | ?????????????????????????????????????????????????? | | ?????????????????????????????????????????????????? | | ?????????????????????????????????????????????????? | | ?????????????????????????????????????????????????? | | ?????????????????????????????????????????????????? | | ???????????????????????????????????"?????????????? | | ???????????????????????????????????T?????????????? | | ???????????????????????????????????"?????????????? | | ?????????????????????????????????????????????????? | | ?????????????????????????????????????????????????? | | ??????????"""????????????????????????????????????? | | ??????????"T"????????????????????????????????????? | | ?????????????????????????????????????????????????? | | ?????????????????????????????????????????????????? | | ?????????????????????????????????????????????????? | | ?????????????????????????????????????????????????? | | ?????????????????????????????????????????????????? | | ?????????????????????????????????????????????????? | | ?????????????????????????????????????????????????? | | ??????????????#?????##############???????????????? | | ?????? ######## ##### ????????? | | ???? ########???????????????? | | ???? s @#??????????????????????? | | ???? s #??????????????????????? | | ???????######## ##### #??????????????????????? | | ????????????????????## ########????????????????? | | ?????????????????????# #! """ #????????????????? | | ??????????????????""?# # """ #????????????????? | | ??????????????????"T?# + """ #????????????????? | | ??????????????????""?# # #????????????????? | | ?????????????????????# # #????????????????? | | ?????????????????????# # #????????????????? | | ?"S??????????????????############????????????????? | | ?"""?????????????????????????????????????????????? | | ??""?????????????????????????????????????????????? | | ?????????????????????????????????????????????????? | | ?????????????????????????????????????????????????? | | ?????????????????????????????????????????????????? | | ?????????????????????????????????????????????????? | | ?????????????????????????????????????????????????? | | ?????????????????????????????????????????????????? | | | | | | | | | | | | | +----------------------------------------------------+ Best States ------------- Heat Dissipation 28 Energy Generation 10 Energy Capacity 250 Matter Stores 300 Matter Capacity 300 Sight Range 16 Terrain Scan Density 10 Evasion (%) 40 Recoil Reduction 2 Item Schematics ----------------- None Robot Schematics ------------------ None Fabricated ------------ Nothing Alien Tech Used ----------------- None Achievements -------------- None Challenges ------------ None Game ------ Seed ArmoredDisruptorClaws Manual? 0 Play Time 00:08:24 Cumulative 21.1 hours Start 2021.07.13 @ 15:40:01 End 2021.07.13 @ 15:48:20 Sessions 1 Manual Loads 0 Difficulty Rogue Special Mode None Game No. 70 Rogue 70 Adventurer 0 Explorer 0 Win Type - Total 0 Types 0/0/0/0/0/0/0/0/0 Lore% 13 Gallery% 27 Achievement% 19 Wizard Run 0 Options --------- ASCII 0 Keyboard 0 Movement Mouse Keybinds 0 Fullscreen 1 Font 18/SmallcapsGlow Map View 76x50 Tactical HUD 1 Map Filters NONE Filters NONE Steam 1 RUN: 2cf6a424-1eb8-4dd0-a506-9ef27228d609